bitfinex-derivatives/quotes_SOLF0:USTF0_20241215
["timestamp","ask_amount","ask_price","bid_price","bid_amount"]
[1734306344305,2.2251,224.77,224.72,5.36824318]
[1734306344706,3.4,224.81,224.64,1.3991]
[1734306344903,2.2256,224.72,224.65,2.2262]
[1734306345407,2.2256,224.72,224.68,5.45350983]
[1734306345909,1.5163,224.76,224.68,5.45350983]
[1734306345910,2.2255,224.74,224.68,5.45350983]
[1734306347210,1.5163,224.76,224.69,2.2258]
[1734306348502,3.7415,224.76,224.69,2.2258]
[1734306349104,3.7415,224.76,224.68,5.45350983]
[1734306349105,2.2254,224.74,224.68,5.45350983]
[1734306349411,1.5163,224.76,224.68,5.45350983]
[1734306349606,1.5163,224.76,224.55,4.88415451]
[1734306349810,2.2262,224.66,224.58,2.2269]
[1734306350111,3.4,224.75,224.55,1.4258]
[1734306350312,16.78,224.75,224.41,1.78205319]
[1734306350505,16.78,224.75,224.42,22.42519707]
[1734306350811,2.2273,224.55,224.52,5.44966037]
[1734306351006,3.4,224.6,224.52,5.44966037]
[1734306351203,6.3987,224.59,224.52,5.44966037]
[1734306351407,2.9987,224.59,224.52,5.44966037]
[1734306352303,3.4,224.6,224.52,5.44966037]
[1734306352510,64.28,224.73,224.52,5.44966037]
[1734306352511,3.4,224.65,224.52,5.44966037]
[1734306353401,2.2265,224.63,224.54,2.2273]
[1734306354306,3.4,224.65,224.52,5.44966037]
[1734306354307,2.2267,224.61,224.53,2.2274]
[1734306354611,3.4,224.65,224.52,5.44966037]
[1734306354811,2.2272,224.56,224.47,2.228]
[1734306355108,3.4,224.57,224.41,2.9298]
[1734306355305,2.2278,224.5,224.43,2.2284]
[1734306356811,2.2279,224.49,224.42,2.2285]
[1734306357208,3.4,224.53,224.38,3.4]
[1734306357410,2.228,224.48,224.41,2.2286]
[1734306357709,2.228,224.48,224.43,5.37440859]
[1734306358401,3.4,224.53,224.38,2.2288]
[1734306358611,3.4,224.53,224.29,1.11466001]
[1734306358612,3.4,224.53,224.05,28.38094003]
[1734306358813,3.4,224.53,224.29,3.4]
[1734306359017,2.2284,224.44,224.35,2.2292]
[1734306359217,3.4,224.45,224.35,2.2292]
[1734306360210,2.9732,224.44,224.35,2.2292]
[1734306360406,2.9732,224.44,224.31,2.2295]
[1734306360611,1.5469,224.43,224.31,2.2295]
[1734306361009,1.5469,224.43,224.27,1.4767]
[1734306361010,1.5469,224.43,224.33,2.2294]
[1734306361211,1.5469,224.43,224.32,5.40434529]
[1734306361610,2.9732,224.44,224.38,2.2289]
[1734306362011,2.9732,224.44,224.32,8.80434529]
[1734306362210,3.4,224.48,224.32,8.80434529]
[1734306363214,3.4,224.51,224.32,8.80434529]
[1734306363410,3.4,224.51,224.33,1.4797]
[1734306363617,3.4,224.51,224.38,2.2289]
[1734306363914,3.4,224.51,224.32,8.80434529]
[1734306364114,3.4,224.5,224.34,2.2292]
[1734306364410,16.78,224.5,224.32,5.40434529]
[1734306365411,2.2288,224.4,224.32,5.40434529]
[1734306365609,3.4,224.42,224.27,4.8767]
[1734306365812,2.229,224.37,224.28,2.2298]
[1734306366012,4.459,224.41,224.27,4.8767]
[1734306366216,4.459,224.41,224.3,5.45344699]
[1734306366414,2.2288,224.4,224.3,5.45344699]
[1734306366617,2.2288,224.4,224.31,2.2296]
[1734306366817,4.459,224.41,224.3,5.45344699]
[1734306367018,4.459,224.41,224.34,2.2293]
[1734306367313,4.459,224.41,224.3,5.45344699]
[1734306367818,2.9646,224.41,224.3,5.45344699]
[1734306368008,1.4328,224.52,224.3,5.45344699]
[1734306368213,2.2281,224.47,224.36,2.2291]
[1734306368410,3.4,224.51,224.3,5.45344699]
[1734306369217,2.2287,224.41,224.34,2.2293]
[1734306369413,2.2287,224.41,224.3,5.45344699]
[1734306370014,2.9504,224.42,224.3,5.45344699]
[1734306370327,1.5197,224.4,224.25,3.4]
[1734306370621,1.5197,224.4,224.29,5.23534505]
[1734306371622,2.2292,224.36,224.29,5.23534505]
[1734306371821,1.5197,224.4,224.29,5.23534505]
[1734306372321,1.5197,224.4,224.17,1.11521865]
[1734306372514,1.5197,224.4,224.24,5.30494976]
[1734306372721,2.2301,224.26,224.19,5.42916739]
[1734306372916,3.4,224.26,224.13,1.4005]
[1734306373123,3.4,224.26,224.14,12.83499472]
[1734306373315,2.2303,224.24,224.18,5.30013097]
[1734306373521,2.2303,224.24,224.14,4.93611149]
[1734306373719,2.2303,224.24,224.13,1.4005]
[1734306374013,5.6302,224.26,224.13,1.4005]
[1734306374218,3.4,224.26,224.17,5.37879778]
[1734306374414,3.38,224.3,224.17,5.37879778]
[1734306374614,3.38,224.31,224.17,5.37879778]
[1734306375018,2.2298,224.3,224.22,2.2305]
[1734306375219,3.38,224.31,224.17,5.37879778]
[1734306375624,2.9005,224.3,224.17,5.37879778]
[1734306376829,2.2299,224.29,224.21,2.2306]
[1734306377129,2.9005,224.3,224.17,5.37879778]
[1734306377328,5.44255291,224.39,224.18,4.92837389]
[1734306377329,3.38,224.32,224.18,4.92837389]
[1734306377519,5.44255291,224.39,224.19,12.81647203]
[1734306377520,3.38,224.34,224.19,12.81647203]
[1734306377829,3.38,224.34,224.2,12.81565505]
[1734306378024,5.6093,224.34,224.21,12.81541922]
[1734306378225,5.6093,224.34,224.22,4.92837389]
[1734306378429,5.6093,224.34,224.23,4.92837389]
[1734306378627,5.6093,224.34,224.19,1.11539083]
[1734306378823,3.38,224.34,224.2,12.82653032]
[1734306379029,3.38,224.34,224.18,2.5518]
[1734306379435,3.38,224.34,224.19,4.93527889]
[1734306379729,3.38,224.34,224.2,4.93527889]
[1734306379929,3.38,224.34,224.21,4.93527889]
[1734306380125,3.38,224.34,224.18,1.5128]
[1734306380323,3.38,224.34,224.19,4.93641489]
[1734306380525,3.38,224.34,224.2,4.93641489]
[1734306380731,2.2298,224.29,224.23,2.2304]
[1734306380931,2.2298,224.29,224.18,1.5128]
[1734306381224,3.38,224.34,224.19,4.93786638]
[1734306381225,2.2303,224.24,224.19,4.93786638]
[1734306381426,2.2303,224.24,224.17,5.37879778]
[1734306381427,3.38,224.26,224.1,1.4252]
[1734306381630,3.38,224.25,224.11,12.85397987]
[1734306381826,3.38,224.25,224.12,4.94383841]
[1734306382032,3.38,224.25,224.13,4.94383841]
[1734306382238,3.38,224.25,224.12,2.2315]
[1734306382729,3.38,224.25,224.1,1.4252]
[1734306382928,3.38,224.25,224.11,5.28769573]
[1734306383726,3.38,224.25,224.12,2.2315]
[1734306384131,3.38,224.25,224.11,5.28769573]
[1734306384338,3.38,224.25,224.12,4.95188657]
[1734306384533,3.38,224.25,224.11,5.28769573]
[1734306384926,2.2305,224.23,224.11,5.28769573]
[1734306385126,3.38,224.25,224.11,5.28769573]
[1734306385529,2.2306,224.21,224.14,2.2313]
[1734306385935,3.38,224.25,224.11,5.28769573]
[1734306386235,3.38,224.25,224.17,2.2309]
[1734306386631,2.2303,224.24,224.15,2.2311]
[1734306387030,3.38,224.25,224.15,2.2311]
[1734306387335,3.38,224.25,224.08,0.49395]
[1734306387531,3.38,224.25,224.09,4.95680966]
[1734306387834,3.38,224.25,224.09,2.2318]
[1734306387835,2.2307,224.2,224.09,2.2318]
[1734306388038,3.38,224.25,224.08,0.49395]
[1734306388232,3.38,224.25,224.09,12.89168261]
[1734306388426,3.38,224.25,224.08,0.49395]
[1734306388427,3.38,224.25,224.1,4.95614141]
[1734306388735,3.38,224.25,224.11,4.95614141]
[1734306388933,3.38,224.25,224.08,0.49395]
[1734306389129,2.2308,224.2,224.11,2.2315]
[1734306389332,3.38,224.25,224.1,5.48696202]
[1734306389634,3.38,224.25,224.16,2.2311]
[1734306389635,2.2304,224.24,224.16,2.2311]
[1734306389834,5.43660326,224.27,224.1,5.48696202]
[1734306389835,3.38,224.26,224.1,5.48696202]
[1734306390033,3.38,224.26,224.12,1.4512]
[1734306390232,3.38,224.26,224.13,12.89851038]
[1734306390438,3.38,224.26,224.14,4.961662]
[1734306390641,3.38,224.26,224.15,4.961662]
[1734306390837,3.38,224.26,224.16,4.961662]
[1734306391035,3.38,224.26,224.12,1.4512]
[1734306391333,3.38,224.26,224.13,12.907127]
[1734306391539,2.2304,224.23,224.16,2.2311]
[1734306391749,2.2304,224.23,224.17,4.96427961]
[1734306391935,2.2304,224.23,224.16,2.2311]
[1734306392232,2.2302,224.26,224.19,2.2308]
[1734306392437,7.8672,224.28,224.2,4.96845136]
[1734306392637,7.8672,224.28,224.21,4.96845136]
[1734306392834,34.01507194,224.43,224.13,1.78532025]
[1734306393029,6.3096,224.35,224.14,15.82721567]
[1734306393234,6.3096,224.35,224.12,4.8312]
[1734306393235,2.2296,224.32,224.21,2.2306]
[1734306393433,6.3096,224.35,224.22,12.92604303]
[1734306393638,6.3096,224.35,224.23,12.92604303]
[1734306393941,6.3096,224.35,224.24,12.92604303]
[1734306394240,6.3096,224.35,224.25,12.94784256]
[1734306394436,2.2296,224.31,224.26,4.97155501]
[1734306394633,2.2296,224.31,224.16,1.5318]
[1734306394634,2.2296,224.31,224.27,4.97155501]
[1734306394834,2.2296,224.31,224.19,3.38]
[1734306395043,6.3096,224.35,224.28,4.98398661]
[1734306395234,6.3096,224.35,224.16,1.5318]
[1734306395434,6.3096,224.35,224.17,1.78531123]
[1734306395741,2.2297,224.3,224.19,2.2308]
[1734306395931,6.3096,224.35,224.2,14.09586853]
[1734306396132,6.3096,224.35,224.21,14.09586853]
[1734306396342,6.3096,224.35,224.22,12.97999696]
[1734306396539,6.3096,224.35,224.23,12.97999696]
[1734306396842,6.3096,224.35,224.24,12.98222953]
[1734306397140,6.3096,224.35,224.25,4.99230652]
[1734306397342,6.3096,224.35,224.16,1.5318]
[1734306397540,6.3096,224.35,224.17,12.99372826]
[1734306397743,6.3096,224.35,224.18,12.99372826]
[1734306397938,2.23,224.28,224.21,2.2306]
[1734306398250,2.23,224.28,224.22,12.99372826]
[1734306398448,2.23,224.28,224.23,12.99372826]
[1734306398736,2.23,224.28,224.24,4.99758779]
[1734306398933,1.5237,224.35,224.25,13.00478442]
[1734306399137,1.5237,224.35,224.26,13.00478442]
[1734306399332,1.5237,224.35,224.2,3.38]
[1734306399333,1.5237,224.35,224.27,13.00478442]
[1734306399532,1.5237,224.35,224.28,13.00478442]
[1734306399737,1.5237,224.35,224.29,13.00478442]
[1734306399937,1.5237,224.35,224.3,4.99758779]
[1734306400139,3.753,224.35,224.31,4.99758779]
[1734306400347,3.753,224.35,224.32,5.0164566]
[1734306400540,3.753,224.35,224.27,2.23]
[1734306400741,2.2294,224.34,224.28,13.04355356]
[1734306401042,6.3838,224.37,224.29,15.27335356]
[1734306401245,2.2292,224.36,224.21,1.78479752]
[1734306401441,2.2292,224.36,224.22,14.16359792]
[1734306401640,6.3838,224.37,224.23,14.16359878]
[1734306401835,2.2292,224.36,224.24,14.16359878]
[1734306402033,2.2292,224.36,224.25,13.04809947]
[1734306402234,3.38,224.37,224.32,2.2295]
[1734306402434,5.1611,224.42,224.33,5.02033984]
[1734306402640,8.5411,224.42,224.34,13.05406463]
[1734306402840,6.3125,224.42,224.35,5.02033984]
[1734306403037,6.3125,224.42,224.36,5.02033984]
[1734306403038,2.2286,224.41,224.36,5.02033984]
[1734306403239,6.3125,224.42,224.27,4.8846]
[1734306403440,1.5466,224.47,224.35,2.2292]
[1734306403633,8.5976,224.46,224.36,13.05858985]
[1734306403843,6.3694,224.46,224.37,13.05858985]
[1734306404032,6.3694,224.46,224.38,13.05638769]
[1734306404239,6.3694,224.46,224.37,2.229]
[1734306404540,6.3694,224.46,224.38,5.02127526]
[1734306404842,6.3694,224.46,224.37,2.229]
[1734306405641,2.2283,224.45,224.37,2.229]
[1734306405835,2.9894,224.46,224.27,4.8846]
[1734306406034,1.4707,224.46,224.39,2.2288]
[1734306406638,1.4707,224.46,224.4,2.2287]
[1734306408042,2.2283,224.45,224.35,1.5409]
[1734306409145,5.6081,224.47,224.35,1.5409]
[1734306409648,8.82960238,224.49,224.39,2.2288]
[1734306409845,2.2283,224.45,224.39,2.2288]
[1734306410247,1.4011,224.55,224.38,5.36841194]
[1734306410443,3.6284,224.55,224.39,5.01618741]
[1734306410749,3.6284,224.55,224.44,2.2283]
[1734306410943,2.2274,224.54,224.42,3.38]
[1734306411245,1.4011,224.55,224.39,1.4493]
[1734306411547,1.4011,224.55,224.4,8.38925692]
[1734306411745,1.4011,224.55,224.41,5.00925692]
[1734306412046,2.2272,224.56,224.42,5.0077379]
[1734306412244,2.2273,224.55,224.48,2.2279]
[1734306412649,6.3896,224.57,224.4,3.38]
[1734306412844,6.3896,224.57,224.41,5.00344669]
[1734306413045,3.38,224.64,224.42,5.00344669]
[1734306413242,3.38,224.64,224.43,5.00344669]
[1734306413448,1.4588,224.63,224.44,5.00344669]
[1734306413653,2.2268,224.59,224.53,2.2274]
[1734306414150,3.38,224.62,224.47,3.38]
[1734306414343,6.73675959,224.65,224.47,3.38]
[1734306414344,1.4684,224.65,224.47,3.38]
[1734306414745,1.4684,224.65,224.48,4.99124122]
[1734306414942,2.2266,224.62,224.47,3.38]
[1734306415145,1.4684,224.65,224.47,3.38]
[1734306415448,2.227,224.58,224.47,3.38]
[1734306416046,2.227,224.58,224.53,2.2274]
[1734306416248,2.2271,224.56,224.47,3.38]
[1734306416448,1.4684,224.65,224.47,3.38]
[1734306416646,1.4684,224.65,224.5,2.2277]
[1734306417151,1.4684,224.65,224.48,2.2279]
[1734306417347,1.4684,224.65,224.45,1.4715]
[1734306418055,1.4684,224.65,224.47,2.228]
[1734306418843,14.97568217,224.58,224.47,2.228]
[1734306419046,4.9249,224.57,224.47,2.228]
[1734306420062,4.9249,224.57,224.45,1.4715]
[1734306420355,1.5449,224.57,224.45,1.4715]
[1734306421260,14.97568217,224.55,224.38,5.36841194]
[1734306421554,14.97568217,224.55,224.38,6.91291194]
[1734306421746,1.5428,224.56,224.38,6.91291194]
[1734306422146,1.5428,224.56,224.41,14.97568217]
[1734306422554,3.7699,224.56,224.49,2.2277]
[1734306422752,1.5449,224.57,224.41,14.97568217]
[1734306423047,1.5428,224.64,224.45,14.97568217]
[1734306423452,1.5428,224.64,224.49,14.97568217]
[1734306423652,2.2267,224.61,224.56,2.2271]
[1734306423854,1.3992,224.66,224.5,4.9245]
[1734306424052,1.3992,224.66,224.51,1.4719]
[1734306424249,2.2264,224.63,224.51,1.4719]
[1734306424747,1.3992,224.66,224.51,1.4719]
[1734306424949,2.2265,224.62,224.56,2.227]
[1734306425148,1.3992,224.66,224.52,3.38]
[1734306425752,1.3992,224.66,224.55,2.2272]
[1734306426648,1.3992,224.66,224.51,1.4719]
[1734306426649,1.3992,224.66,224.51,2.2275]
[1734306426953,1.3992,224.66,224.49,3.36]
[1734306426954,14.97568217,224.63,224.49,3.36]
[1734306427157,1.4681,224.62,224.49,3.36]
[1734306427356,3.36,224.61,224.49,3.36]
[1734306427757,3.36,224.61,224.49,5.5878]
[1734306427958,3.36,224.61,224.49,3.36]
[1734306428362,2.2269,224.59,224.48,2.2279]
[1734306428660,2.2269,224.59,224.47,3.36]
[1734306429463,2.227,224.58,224.52,2.2274]
[1734306431473,1.4681,224.62,224.47,3.36]
[1734306431672,1.4681,224.62,224.43,1.4773]
[1734306431968,1.4681,224.62,224.44,3.36]
[1734306432370,4.7592,224.66,224.44,3.36]
[1734306432577,4.7592,224.66,224.54,2.2272]
[1734306432866,4.7592,224.66,224.52,3.36]
[1734306433278,5.34800633,224.68,224.52,18.33568217]
[1734306433470,3.36,224.69,224.53,2.9418]
[1734306433869,8.83979828,224.69,224.53,2.9418]
[1734306434273,2.2262,224.65,224.6,2.2267]
[1734306434566,3.36,224.72,224.53,2.9418]
[1734306434771,3.36,224.72,224.54,1.0358]
[1734306434973,3.36,224.73,224.54,1.0358]
[1734306435170,3.36,224.73,224.63,2.2264]
[1734306435171,2.226,224.68,224.63,2.2264]
[1734306436065,2.226,224.68,224.62,2.2264]
[1734306436270,2.226,224.68,224.54,1.0358]
[1734306436466,2.226,224.68,224.55,12.92741152]
[1734306436668,4.3508,224.74,224.56,27.90309369]
[1734306436876,4.3508,224.74,224.57,12.92546406]
[1734306437168,4.3508,224.74,224.58,12.92546406]
[1734306437370,2.2257,224.71,224.59,8.33208135]
[1734306437571,2.2257,224.71,224.6,4.97208135]
[1734306437770,2.2257,224.71,224.61,4.9500075]
[1734306437965,2.2257,224.71,224.59,3.36]
[1734306438176,2.2257,224.71,224.6,4.95139623]
[1734306438371,2.2257,224.71,224.61,4.9546657]
[1734306438676,2.2257,224.71,224.66,2.2261]
[1734306439177,2.2257,224.71,224.67,2.226]
[1734306440374,2.2255,224.73,224.67,2.226]
[1734306440573,4.3508,224.74,224.67,2.226]
[1734306440767,1.4195,224.74,224.6,14.97568217]
[1734306440968,2.2252,224.75,224.61,4.95402913]
[1734306441179,2.2252,224.75,224.62,4.95402913]
[1734306441373,2.2251,224.76,224.69,2.2258]
[1734306441570,14.97568217,224.79,224.69,2.2258]
[1734306441775,14.97568217,224.79,224.63,1.4768]
[1734306441979,9.33925225,224.81,224.65,9.33925225]
[1734306442171,9.33925225,224.81,224.66,3.36]
[1734306442473,2.2249,224.78,224.72,2.2254]
[1734306442777,12.24765225,224.84,224.68,9.33925225]
[1734306442973,12.24765225,224.84,224.77,2.225]
[1734306442974,2.2244,224.83,224.77,2.225]
[1734306443178,9.33925225,224.87,224.73,3.36]
[1734306443572,9.33925225,224.87,224.74,1.4697]
[1734306443770,3.6331,224.86,224.79,2.2248]
[1734306443971,243.86225748,225.04,224.84,9.33925225]
[1734306444177,2.223,224.98,224.89,2.2238]
[1734306444572,9.33925225,225.01,224.89,2.2238]
[1734306444773,4.3184,225.03,224.9,9.33925225]
[1734306444975,9.33925225,225.07,224.9,9.33925225]
[1734306445177,9.33925225,225.1,224.93,9.33925225]
[1734306445377,9.33925225,225.07,224.93,2.2234]
[1734306445681,5.44996864,225.09,224.93,2.2234]
[1734306445682,9.33925225,225.04,224.93,2.2234]
[1734306446071,9.33925225,225.04,224.91,3.36]
[1734306446072,14.91240058,225.07,224.95,2.2232]
[1734306447280,14.91240058,225.07,224.9,5.34264585]
[1734306447480,14.91240058,225.03,224.91,3.36]
[1734306448580,14.91240058,224.99,224.8,1.112354]
[1734306448784,2.9602,224.98,224.81,8.27640372]
[1734306448972,2.2234,224.94,224.82,4.91640372]
[1734306449178,7.7201,224.98,224.82,3.36]
[1734306449484,14.91240058,224.95,224.82,3.36]
[1734306450083,2.2237,224.91,224.82,2.2245]
[1734306450274,2.2237,224.91,224.83,5.31494185]
[1734306450479,14.91240058,224.95,224.79,3.36]
[1734306450678,2.2237,224.91,224.79,3.36]
[1734306450875,3.36,224.91,224.79,3.36]
[1734306451278,2.2236,224.92,224.82,2.2244]
[1734306451678,3.36,224.96,224.8,8.80684868]
[1734306451875,3.36,224.96,224.81,4.91558031]
[1734306452182,3.36,224.96,224.8,8.80684868]
[1734306454386,2.2237,224.91,224.83,2.2244]
[1734306455285,3.36,224.96,224.8,8.80684868]
[1734306455492,2.2236,224.91,224.82,2.2245]
[1734306455990,3.36,224.93,224.8,8.80684868]
[1734306456290,3.36,224.93,224.78,2.2248]
[1734306456590,14.91240058,224.91,224.73,3.36]
[1734306456786,14.91240058,224.91,224.74,4.92844261]
[1734306456986,14.91240058,224.91,224.73,3.36]
[1734306457181,14.91240058,224.91,224.74,4.92820487]
[1734306457380,2.2243,224.84,224.76,2.2251]
[1734306458287,2.2243,224.84,224.73,3.36]
[1734306458288,2.2242,224.86,224.78,2.2249]
[1734306458485,14.91240058,224.95,224.77,5.33956372]
[1734306458689,18.79961177,224.97,224.78,4.92758876]
[1734306458690,3.36,224.92,224.78,4.92758876]
[1734306458993,3.36,224.92,224.77,5.33956372]
[1734306460189,3.36,224.92,224.78,2.2248]
[1734306460392,3.36,224.92,224.77,5.33956372]
[1734306460393,5.41961177,224.97,224.8,14.91240058]
[1734306460583,0.43126,225.1,224.85,14.91240058]
[1734306460795,0.43126,225.1,224.86,2.9806]
[1734306460796,2.934,225.06,224.86,2.9806]
[1734306461095,6.294,225.06,224.86,2.9806]
[1734306461288,6.294,225.06,224.88,14.91240058]
[1734306461481,2.934,225.06,224.89,3.36]
[1734306462491,2.2226,225.02,224.89,3.36]
[1734306463081,2.2226,225.02,224.95,2.2232]
[1734306463292,2.2226,225.02,224.89,3.36]
[1734306463586,2.2223,225.05,224.89,3.36]
[1734306463792,2.934,225.06,224.89,3.36]
[1734306464790,2.2228,225.0,224.92,2.2235]
[1734306464986,2.2228,225.0,224.89,3.36]
[1734306466291,2.934,225.06,224.95,5.47117745]
[1734306466292,3.34,225.02,224.95,5.47117745]
[1734306466488,3.34,225.02,224.86,2.9806]
[1734306466894,2.2232,224.96,224.88,2.2239]
[1734306467192,3.34,225.02,224.85,3.34]
[1734306467193,14.91240058,225.0,224.85,3.34]
[1734306467498,14.91240058,225.0,224.92,5.31452206]
[1734306467693,14.91240058,225.0,224.85,3.34]
[1734306467889,2.2232,224.96,224.87,2.224]
[1734306468091,14.91240058,225.0,224.85,3.34]
[1734306468592,14.91240058,225.0,224.84,3.34]
[1734306468593,2.2233,224.95,224.84,3.34]
[1734306468887,3.34,225.02,224.91,5.44642389]
[1734306469090,2.2229,224.99,224.93,2.2234]
[1734306469298,3.34,225.03,224.93,2.2234]
[1734306470399,2.2228,225.0,224.93,2.2234]
[1734306471893,2.2228,225.0,224.94,2.2233]
[1734306472495,2.2228,225.0,224.92,2.2235]
[1734306472799,2.2228,225.0,224.91,8.78642389]
[1734306473193,2.2228,225.0,224.94,2.2233]
[1734306474801,6.274,225.06,224.92,5.5635]
[1734306474802,2.2229,224.99,224.92,5.5635]
[1734306475103,6.274,225.06,224.92,3.34]
[1734306475796,6.274,225.06,224.91,5.44642389]
[1734306476101,2.223,224.98,224.91,5.44642389]
[1734306477103,2.223,224.98,224.92,2.2235]
[1734306478191,1.4423,225.06,224.91,5.44642389]
[1734306478397,1.4423,225.06,224.93,9.31917883]
[1734306479000,1.4423,225.06,224.94,4.96186149]
[1734306479194,1.4423,225.06,224.93,9.31917883]
[1734306479195,1.4423,225.06,224.95,4.96186149]
[1734306479399,2.2225,225.03,224.97,2.223]
[1734306480001,1.4423,225.06,224.91,6.93912389]
[1734306480196,1.4423,225.06,224.92,12.87986198]
[1734306480400,1.4423,225.06,224.91,5.44642389]
[1734306480601,2.223,224.99,224.92,7.18285662]
[1734306480904,2.223,224.99,224.93,4.95935662]
[1734306481097,1.4423,225.06,224.93,2.2234]
[1734306481098,2.2228,225.0,224.93,2.2234]
[1734306481297,1.4423,225.06,224.94,4.96226325]
[1734306481497,1.4423,225.06,224.91,5.44642389]
[1734306481704,1.4423,225.06,224.94,2.2233]
[1734306482105,1.4423,225.06,224.95,4.96608079]
[1734306482304,1.4423,225.06,224.91,5.44642389]
[1734306482505,1.4423,225.06,224.92,12.91892262]
[1734306482705,1.4423,225.06,224.93,12.91892262]
[1734306482901,1.4423,225.06,224.94,12.91892262]
[1734306483102,1.4423,225.06,224.95,4.96881639]
[1734306483304,1.4423,225.06,224.96,4.96881639]
[1734306483504,1.4423,225.06,224.91,5.44642389]
[1734306483505,1.4423,225.06,224.97,7.19181639]
[1734306483704,1.4423,225.06,224.91,5.44642389]
[1734306483901,0.43126,225.1,225.0,9.31917883]
[1734306484111,0.43126,225.1,225.03,9.31917883]
[1734306484402,0.43126,225.1,225.06,2.2221]
[1734306484603,0.43126,225.1,225.05,3.34]
[1734306485101,0.43126,225.1,225.08,2.222]
[1734306485301,0.43126,225.1,225.05,3.34]
[1734306485510,0.43126,225.1,225.06,4.9671789]
[1734306485808,0.43126,225.1,225.07,4.9671789]
[1734306486109,0.43126,225.1,225.06,2.2222]
[1734306486305,0.43126,225.1,225.07,4.96787403]
[1734306486499,0.43126,225.1,225.08,4.96787403]
[1734306486803,0.43126,225.1,225.09,5.40420893]
[1734306487007,0.43126,225.1,224.88,14.89327967]
[1734306487008,0.43126,225.1,224.94,18.23327967]
[1734306487204,2.2221,225.08,225.02,2.2226]
[1734306487406,0.43126,225.1,225.06,5.29569018]
[1734306487802,2.2219,225.09,225.06,5.29569018]
[1734306488017,0.43126,225.1,225.06,5.29569018]
[1734306489408,3.0769,225.15,225.06,5.29569018]
[1734306490010,2.2219,225.1,225.06,5.29569018]
[1734306490406,3.0769,225.15,225.06,5.29569018]
[1734306491411,3.0769,225.15,224.95,3.34]
[1734306491607,3.0769,225.15,224.96,4.97439238]
[1734306491812,3.0769,225.15,224.97,4.97439238]
[1734306492010,3.0769,225.15,224.94,18.23327967]
[1734306492208,14.89327967,225.12,224.95,12.93370087]
[1734306492404,3.34,225.11,224.94,18.23327967]
[1734306492807,2.2226,225.02,224.95,2.2233]
[1734306493415,2.2227,225.01,224.95,2.2233]
[1734306493910,2.2227,225.01,224.94,18.23327967]
[1734306494311,3.34,225.11,224.94,18.23327967]
[1734306494608,2.2226,225.02,224.95,2.2233]
[1734306496416,3.34,225.11,224.98,5.37295356]
[1734306496908,2.2228,225.0,224.98,5.37295356]
[1734306497115,3.34,225.11,224.98,5.37295356]
[1734306497312,2.2225,225.03,224.98,5.37295356]
[1734306497511,3.34,225.11,224.98,5.37295356]
[1734306498308,2.2221,225.08,224.98,5.37295356]
[1734306498617,3.34,225.11,224.98,5.37295356]
[1734306499315,14.89327967,225.12,224.98,5.37295356]
[1734306499511,2.2227,225.01,224.98,5.37295356]
[1734306499718,3.32,225.11,224.98,5.37295356]
[1734306501118,2.2225,225.03,224.98,5.37295356]
[1734306501316,3.32,225.11,224.98,5.37295356]
[1734306501817,2.2227,225.01,224.98,5.37295356]
[1734306502016,3.32,225.04,224.9,16.44527967]
[1734306502415,3.32,225.04,224.9,18.66897967]
[1734306502718,3.32,225.04,224.9,16.44527967]
[1734306502917,2.2231,224.97,224.91,2.2236]
[1734306503214,2.2231,224.97,224.96,5.41459195]
[1734306505519,3.32,225.03,224.96,5.41459195]
[1734306505721,2.2229,224.99,224.96,5.41459195]
[1734306506024,1.5471,225.07,224.96,5.41459195]